fUST/lending_fUST_20250801
["ID","MTS","AMOUNT","RATE_DAILY","PERIOD"]
[376483115,1753992672331,-150.803326,0.000222,6]
[376483116,1753992672340,-312.16666667,0.000222,7]
[376483117,1753992672349,-4009.75602667,0.00022211,2]
[376483118,1753992672358,-1096.7,0.00022238,4]
[376483119,1753992672368,-471.09238237,0.00022242,2]
[376483120,1753992672377,-9711.88079616,0.00022314,7]
[376483121,1753992672387,-151.0,0.00022314,7]
[376483122,1753992672396,-186.05043567,0.0002239,2]
[376483123,1753992672405,-518.28,0.00022465,2]
[376483124,1753992672414,-508.1,0.00022465,2]
[376483125,1753992672424,-151.0,0.00022465,7]
[376483126,1753992672436,-207.968851,0.00022465,7]
[376483127,1753992672445,-207.968851,0.00022465,7]
[376483128,1753992672455,-460.0,0.00022465,2]
[376483129,1753992672464,-834.81,0.00022465,2]
[376483130,1753992672474,-543.74,0.00022465,2]
[376483131,1753992672483,-460.0,0.00022465,2]
[376483132,1753992672493,-500.0,0.00022465,2]
[376483133,1753992672502,-640.74,0.00022465,2]
[376483134,1753992672511,-460.0,0.00022465,2]
[376483135,1753992672520,-478.96,0.00022465,2]
[376483136,1753992672530,-696.25,0.00022465,2]
[376483137,1753992672539,-513.77,0.00022465,2]
[376483138,1753992672548,-1007.37,0.00022465,2]
[376483139,1753992672558,-500.0,0.00022465,2]
[376483140,1753992672567,-523.59399117,0.00022465,2]
[376483141,1753992672577,-543.8,0.00022465,2]
[376483142,1753992672587,-487.29,0.00022465,2]
[376483143,1753992672596,-460.0,0.00022465,2]
[376483144,1753992672606,-460.0,0.00022465,2]
[376483145,1753992672615,-460.0,0.00022465,2]
[376483146,1753992672625,-460.0,0.00022465,2]
[376483147,1753992672635,-663.86,0.00022465,2]
[376483148,1753992672644,-460.0,0.00022465,2]
[376483149,1753992672653,-460.0,0.00022465,2]
[376483150,1753992672663,-484.16,0.00022465,2]
[376483151,1753992672673,-691.12,0.00022465,2]
[376483152,1753992672689,-518.8,0.00022465,2]
[376483153,1753992672699,-460.0,0.00022465,2]
[376483154,1753992672708,-460.0,0.00022465,2]
[376483155,1753992672717,-511.93,0.00022465,2]
[376483156,1753992672726,-565.81,0.00022465,2]
[376483157,1753992672735,-217.14413762,0.00022465,2]
[376483158,1753992672745,-460.0,0.00022465,2]
[376483159,1753992672754,-460.0,0.00022465,2]
[376483160,1753992672763,-633.78,0.00022465,2]
[376483161,1753992672773,-460.0,0.00022465,2]
[376483162,1753992672783,-3242.99,0.00022465,2]
[376483163,1753992672792,-472.0,0.00022465,2]
[376483164,1753992672802,-622.23,0.00022465,2]
[376483165,1753992672811,-906.16,0.00022465,2]
[376483166,1753992672820,-702.88,0.00022465,2]
[376483167,1753992672830,-2467.09,0.00022465,2]
[376483168,1753992672839,-750.5,0.00022465,2]
[376483169,1753992672848,-734.59,0.00022465,2]
[376483170,1753992672858,-2589.77111147,0.00022465,2]
[376483171,1753992672879,-512.676416,0.000199,2]
[376483172,1753992672893,-2914.92888853,0.00022465,2]
[376483173,1753992672903,-774.99,0.00022465,2]
[376483174,1753992672913,-923.43,0.00022465,2]
[376483175,1753992672923,-460.0,0.00022465,2]
[376483176,1753992672936,-868.05,0.00022465,2]
[376483177,1753992672945,-1469.6,0.00022465,2]
[376483178,1753992672955,-751.43,0.00022465,2]
[376483179,1753992672965,-339.25183864,0.00022465,2]
[376483180,1753992672975,-460.0,0.00022465,2]
[376483181,1753992672984,-736.37,0.00022465,2]
[376483182,1753992672994,-1731.99,0.00022465,2]
[376483183,1753992673003,-460.0,0.00022465,2]
[376483184,1753992673012,-833.54,0.00022465,2]
[376483185,1753992673022,-865.22,0.00022465,2]
[376483186,1753992673031,-2612.28,0.00022465,2]
[376483187,1753992673041,-460.0,0.00022465,2]
[376483188,1753992673051,-1459.37,0.00022465,2]
[376483189,1753992673060,-2405.18,0.00022465,2]
[376483190,1753992673069,-1539.54,0.00022465,2]
[376483191,1753992673079,-3444.98,0.00022465,2]
[376483192,1753992673088,-1637.54791365,0.00022465,2]
[376483237,1753992854462,3000.0,0.000192,14]
[376483238,1753992854992,2000.0,0.000192,14]
[376483267,1753992969108,10000.0,0.00018232,2]
[376483278,1753993194100,10000.0,0.00023,30]
[376483287,1753993311961,-200.0,0.00026121,120]
[376483288,1753993312499,-200.0,0.0002666,120]
[376483289,1753993313524,-2141.383883,0.0002666,120]
[376483290,1753993313569,-337.616117,0.0002666,120]
[376483291,1753993313613,-1442.0,0.0002666,120]
[376483292,1753993313623,-200.0,0.00027156,120]
[376483293,1753993313633,-151.0,0.000273,120]
[376483294,1753993313642,-167.52873483,0.0002739,120]
[376483295,1753993313652,-180.85514817,0.00027397,120]
[376483296,1753993369798,24900.0,0.00018221,2]
[376483303,1753993480947,330.444229,0.00013699,2]
[376483305,1753993521175,1501.23749942,0.0001878,2]
[376483325,1753993710831,155.0,0.00018,30]
[376483348,1753993798425,-200.0,0.00027,120]
[376483349,1753993798451,-292.402329,0.00027397,120]
[376483350,1753993798474,-6515.195342,0.000274,120]
[376483351,1753993799084,-3484.804658,0.000274,120]
[376483401,1753993831862,-235.54619122,0.00019077,2]
[376483403,1753993831874,-68.27446211,0.00019077,2]
[376483415,1753993831978,-231.72553789,0.00019077,2]
[376483417,1753993831989,-947.49533541,0.00019077,2]
[376483934,1753993837437,-252.50466459,0.00019077,2]
[376483936,1753993837448,-20747.52876468,0.00019078,2]
[376483941,1753993837493,-654.86091982,0.00019078,2]
[376484183,1753993840017,-8393.96401902,0.00019078,2]
[376484186,1753993840027,-500.0,0.00019177,2]
[376484189,1753993840036,-507.52474567,0.00019177,2]
[376484193,1753993840045,-161.09478809,0.00019177,2]
[376484197,1753993840054,-500.0,0.00019177,2]
[376484201,1753993840064,-500.0,0.00019177,2]
[376484205,1753993840073,-500.0,0.00019177,2]
[376484208,1753993840082,-366.34158978,0.00019177,2]
[376484211,1753993840092,-500.0,0.00019177,2]
[376484214,1753993840101,-606.81798076,0.00019177,2]
[376484217,1753993840110,-612.8531352,0.00019177,2]
[376484220,1753993840119,-159.83579672,0.00019177,2]
[376484223,1753993840128,-500.0,0.00019177,2]
[376484226,1753993840137,-500.0,0.00019177,2]
[376484229,1753993840146,-306.63658023,0.00019177,2]
[376484231,1753993840155,-500.0,0.00019177,2]
[376484233,1753993840164,-500.0,0.00019177,2]
[376484235,1753993840175,-500.0,0.00019177,2]
[376484237,1753993840184,-513.84766899,0.00019177,2]
[376484239,1753993840193,-500.0,0.00019177,2]
[376484241,1753993840203,-500.0,0.00019177,2]
[376484243,1753993840217,-500.0,0.00019177,2]
[376484245,1753993840226,-500.0,0.00019177,2]
[376484247,1753993840235,-235.09179672,0.00019177,2]
[376484249,1753993840244,-644.68644138,0.00019177,2]
[376484251,1753993840253,-426.31174663,0.00019177,2]
[376484253,1753993840263,-500.0,0.00019177,2]
[376484254,1753993840273,-500.0,0.00019177,2]
[376484256,1753993840282,-500.0,0.00019177,2]
[376484257,1753993840292,-500.0,0.00019177,2]
[376484258,1753993840301,-500.0,0.00019177,2]
[376484259,1753993840310,-500.0,0.00019177,2]
[376484260,1753993840319,-500.0,0.00019177,2]
[376484262,1753993840328,-250.0,0.00019177,2]
[376484264,1753993840337,-621.57241653,0.00019177,2]
[376484266,1753993840347,-500.0,0.00019177,2]
[376484268,1753993840356,-500.0,0.00019177,2]
[376484270,1753993840366,-500.0,0.00019177,2]
[376484272,1753993840375,-500.0,0.00019177,2]
[376484274,1753993840385,-500.0,0.00019177,2]
[376484276,1753993840394,-500.0,0.00019177,2]
[376484278,1753993840404,-500.0,0.00019177,2]
[376484280,1753993840412,-500.0,0.00019177,2]
[376484282,1753993840422,-500.0,0.00019177,2]
[376484284,1753993840431,-500.0,0.00019177,2]
[376484286,1753993840441,-383.5207432,0.00019177,2]
[376484288,1753993840450,-500.0,0.00019177,2]
[376484290,1753993840460,-500.0,0.00019177,2]
[376484292,1753993840469,-500.0,0.00019177,2]
[376484293,1753993840479,-500.0,0.00019177,2]
[376484294,1753993840488,-446.47970477,0.00019177,2]
[376484295,1753993840498,-500.0,0.00019177,2]
[376484296,1753993840507,-500.0,0.00019177,2]
[376484297,1753993840516,-460.0,0.00019178,2]
[376484298,1753993840525,-460.0,0.00019178,2]
[376484299,1753993840535,-458.34087184,0.00019178,2]
[376484301,1753993840544,-460.0,0.00019178,2]
[376484302,1753993840554,-596.3951263,0.00019178,2]
[376484303,1753993840564,-461.17510533,0.00019178,2]
[376484305,1753993840573,-461.63962533,0.00019178,2]
[376484307,1753993840582,-460.0,0.00019178,2]
[376484309,1753993840592,-460.0,0.00019178,2]
[376484311,1753993840602,-460.0,0.00019178,2]
[376484313,1753993840611,-460.0,0.00019178,2]
[376484315,1753993840620,-460.0,0.00019178,2]
[376484317,1753993840630,-460.0,0.00019178,2]
[376484319,1753993840639,-467.15668466,0.00019178,2]
[376484321,1753993840649,-460.0,0.00019178,2]
[376484323,1753993840658,-460.0,0.00019178,2]
[376484325,1753993840668,-498.75854964,0.00019178,2]
[376484327,1753993840677,-460.0,0.00019178,2]
[376484329,1753993840686,-527.9,0.00019178,2]
[376484331,1753993840695,-460.0,0.00019178,2]
[376484333,1753993840705,-460.0,0.00019178,2]
[376484335,1753993840714,-460.0,0.00019178,2]
[376484337,1753993840725,-460.0,0.00019178,2]
[376484339,1753993840734,-460.0,0.00019178,2]
[376484341,1753993840743,-460.0,0.00019178,2]
[376484343,1753993840752,-500.0,0.00019178,2]
[376484345,1753993840761,-500.0,0.00019178,2]
[376484347,1753993840771,-500.0,0.00019178,2]
[376484349,1753993840780,-460.0,0.00019178,2]
[376484351,1753993840789,-460.0,0.00019178,2]
[376484353,1753993840798,-460.0,0.00019178,2]
[376484355,1753993840807,-460.0,0.00019178,2]
[376484357,1753993840817,-1441.23,0.00019178,2]
[376484359,1753993840826,-460.0,0.00019178,2]
[376484361,1753993840835,-460.0,0.00019178,2]
[376484363,1753993840845,-460.0,0.00019178,2]
[376484365,1753993840854,-460.0,0.00019178,2]
[376484367,1753993840863,-460.0,0.00019178,2]
[376484369,1753993840872,-460.0,0.00019178,2]
[376484371,1753993840882,-460.0,0.00019178,2]
[376484373,1753993840891,-460.0,0.00019178,2]
[376484375,1753993840900,-460.0,0.00019178,2]
[376484377,1753993840910,-464.86912437,0.00019178,2]
[376484379,1753993840919,-951.04,0.00019178,2]
[376484381,1753993840929,-460.0,0.00019178,2]
[376484383,1753993840938,-563.64411547,0.00019178,2]
[376484385,1753993840947,-460.0,0.00019178,2]
[376484387,1753993840956,-460.0,0.00019178,2]
[376484389,1753993840967,-513.32,0.00019178,2]
[376484391,1753993840976,-460.0,0.00019178,2]
[376484393,1753993840985,-460.0,0.00019178,2]
[376484395,1753993840994,-460.0,0.00019178,2]
[376484397,1753993841003,-460.0,0.00019178,2]
[376484399,1753993841013,-460.0,0.00019178,2]
[376484401,1753993841022,-2034.62,0.00019178,2]
[376484403,1753993841032,-460.0,0.00019178,2]
[376484405,1753993841041,-460.0,0.00019178,2]
[376484407,1753993841051,-4951.28,0.00019178,2]
[376484409,1753993841060,-460.0,0.00019178,2]
[376484411,1753993841070,-460.99543552,0.00019178,2]
[376484413,1753993841079,-460.0,0.00019178,2]
[376484415,1753993841088,-460.0,0.00019178,2]
[376484417,1753993841097,-460.0,0.00019178,2]
[376484419,1753993841107,-1343.44,0.00019178,2]
[376484421,1753993841115,-579.97,0.00019178,2]
[376484423,1753993841125,-659.34,0.00019178,2]
[376484425,1753993841134,-460.0,0.00019178,2]
[376484427,1753993841144,-460.0,0.00019178,2]
[376484429,1753993841154,-2537.1,0.00019178,2]
[376484431,1753993841163,-460.0,0.00019178,2]
[376484433,1753993841173,-460.0,0.00019178,2]
[376484435,1753993841182,-220.06161167,0.00019178,2]
[376484437,1753993841191,-460.0,0.00019178,2]
[376484439,1753993841201,-460.0,0.00019178,2]
[376484441,1753993841215,-460.0,0.00019178,2]
[376484443,1753993841224,-460.0,0.00019178,2]
[376484445,1753993841233,-460.0,0.00019178,2]
[376484447,1753993841242,-460.0,0.00019178,2]
[376484449,1753993841252,-500.0,0.00019178,2]
[376484451,1753993841261,-460.0,0.00019178,2]
[376484453,1753993841270,-500.0,0.00019178,2]
[376484455,1753993841280,-460.0,0.00019178,2]
[376484457,1753993841290,-460.0,0.00019178,2]
[376484459,1753993841299,-460.0,0.00019178,2]
[376484461,1753993841307,-519.53,0.00019178,2]
[376484463,1753993841317,-460.0,0.00019178,2]
[376484465,1753993841326,-460.0,0.00019178,2]
[376484467,1753993841335,-460.0,0.00019178,2]
[376484469,1753993841344,-460.0,0.00019178,2]
[376484471,1753993841353,-460.0,0.00019178,2]
[376484473,1753993841363,-460.0,0.00019178,2]
[376484475,1753993841371,-1762.62,0.00019178,2]
[376484477,1753993841381,-460.0,0.00019178,2]
[376484479,1753993841391,-500.0,0.00019178,2]
[376484481,1753993841400,-184.766065,0.00019178,2]
[376484483,1753993841410,-460.0,0.00019451,2]
[376484485,1753993841420,-2143.87,0.00019451,2]
[376484487,1753993841429,-460.0,0.00019451,2]
[376484489,1753993841439,-534.17,0.00019451,2]
[376484491,1753993841448,-460.0,0.00019451,2]
[376484493,1753993841457,-460.0,0.00019452,2]
[376484495,1753993841467,-460.0,0.00019452,2]
[376484497,1753993841476,-460.0,0.00019452,2]
[376484499,1753993841486,-340.90000032,0.00019452,2]
[376484501,1753993841495,-384.13,0.00019452,2]
[376484503,1753993841506,-460.0,0.00019452,2]
[376484505,1753993841515,-527.9,0.00019452,2]
[376484507,1753993841525,-460.0,0.00019452,2]
[376484509,1753993841535,-460.0,0.00019452,2]
[376484511,1753993841544,-181.63424312,0.00019452,2]
[376484513,1753993841554,-460.0,0.00019452,2]
[376484515,1753993841563,-460.0,0.00019452,2]
[376484517,1753993841573,-460.0,0.00019452,2]
[376484519,1753993841582,-460.0,0.00019452,2]
[376484521,1753993841592,-1441.23,0.00019452,2]
[376484523,1753993841601,-460.0,0.00019452,2]
[376484525,1753993841611,-460.0,0.00019452,2]
[376484527,1753993841621,-460.0,0.00019452,2]
[376484529,1753993841630,-460.0,0.00019452,2]
[376484531,1753993841639,-470.35407382,0.00019452,2]
[376484533,1753993841649,-460.0,0.00019452,2]
[376484535,1753993841658,-460.0,0.00019452,2]
[376484537,1753993841668,-460.0,0.00019452,2]
[376484539,1753993841679,-951.04,0.00019452,2]
[376484542,1753993841688,-460.0,0.00019452,2]
[376484544,1753993841698,-460.0,0.00019452,2]
[376484546,1753993841708,-513.32,0.00019452,2]
[376484547,1753993841718,-460.0,0.00019452,2]
[376484550,1753993841728,-460.0,0.00019452,2]
[376484552,1753993841737,-460.0,0.00019452,2]
[376484554,1753993841746,-460.0,0.00019452,2]
[376484556,1753993841755,-2034.62,0.00019452,2]
[376484557,1753993841764,-460.0,0.00019452,2]
[376484560,1753993841773,-460.0,0.00019452,2]
[376484562,1753993841783,-4951.28,0.00019452,2]
[376484563,1753993841792,-460.0,0.00019452,2]
[376484565,1753993841802,-460.0,0.00019452,2]
[376484568,1753993841811,-460.4538715,0.00019452,2]
[376484570,1753993841820,-460.0,0.00019452,2]
[376484572,1753993841830,-1343.44,0.00019452,2]
[376484574,1753993841839,-579.97,0.00019452,2]
[376484576,1753993841848,-659.34,0.00019452,2]
[376484578,1753993841858,-460.0,0.00019452,2]
[376484580,1753993841867,-2537.1,0.00019452,2]
[376484582,1753993841876,-460.0,0.00019452,2]
[376484584,1753993841885,-161.26848827,0.00019452,2]
[376484586,1753993841895,-460.0,0.00019452,2]
[376484588,1753993841904,-460.0,0.00019452,2]
[376484590,1753993841913,-460.0,0.00019452,2]
[376484592,1753993841925,-519.53,0.00019452,2]
[376484594,1753993841935,-460.0,0.00019452,2]
[376484596,1753993841944,-460.0,0.00019452,2]
[376484598,1753993841953,-460.0,0.00019452,2]
[376484600,1753993841962,-800.0,0.00019455,2]
[376484602,1753993841972,-200.0,0.00019459,15]
[376484604,1753993841981,-200.0,0.00019459,15]
[376484606,1753993841990,-200.0,0.00019459,15]
[376484608,1753993842000,-200.0,0.00019459,15]
[376484610,1753993842009,-200.0,0.00019459,15]
[376484612,1753993842018,-200.0,0.00019459,15]
[376484614,1753993842027,-200.0,0.00019459,15]
[376484616,1753993842036,-200.0,0.00019459,15]
[376484618,1753993842045,-705.95,0.000195,2]
[376484620,1753993842056,-298.11911106,0.00019626,2]
[376484622,1753993842065,-214.99831783,0.0001969,2]
[376484624,1753993842075,-160.0,0.00019691,2]
[376484626,1753993842085,-460.682337,0.00019691,2]
[376484628,1753993842094,-231.48161788,0.00019691,2]
[376484630,1753993842104,-216.18812866,0.00019691,2]
[376484632,1753993842113,-12642.0599901,0.00019691,2]
[376484634,1753993842123,-460.0,0.00019725,2]
[376484636,1753993842133,-2143.87,0.00019725,2]
[376484654,1753993842288,-460.0,0.00019725,2]
[376484656,1753993842298,-534.17,0.00019725,2]
[376484658,1753993842308,-460.0,0.00019725,2]
[376484660,1753993842317,-151.0,0.00019726,2]
[376484662,1753993842326,-151.0,0.00019726,2]
[376484664,1753993842335,-151.0,0.00019726,2]
[376484666,1753993842345,-460.0,0.00019726,2]
[376484668,1753993842355,-460.0,0.00019726,2]
[376484670,1753993842364,-527.9,0.00019726,2]
[376484672,1753993842373,-460.0,0.00019726,2]
[376484674,1753993842382,-460.0,0.00019726,2]
[376484676,1753993842392,-1441.23,0.00019726,2]
[376484678,1753993842401,-491.0079628,0.00019726,2]
[376484680,1753993842411,-460.0,0.00019726,2]
[376484682,1753993842423,-460.0,0.00019726,2]
[376484684,1753993842432,-460.0,0.00019726,2]
[376484686,1753993842442,-460.0,0.00019726,2]
[376484688,1753993842451,-460.0,0.00019726,2]
[376484690,1753993842460,-460.0,0.00019726,2]
[376484692,1753993842470,-951.04,0.00019726,2]
[376484694,1753993842479,-460.0,0.00019726,2]
[376484696,1753993842488,-460.0,0.00019726,2]
[376484698,1753993842498,-513.32,0.00019726,2]
[376484700,1753993842508,-460.0,0.00019726,2]
[376484704,1753993842517,-460.0,0.00019726,2]
[376484706,1753993842527,-460.0,0.00019726,2]
[376484708,1753993842536,-460.0,0.00019726,2]
[376484710,1753993842545,-2034.62,0.00019726,2]
[376484712,1753993842554,-460.0,0.00019726,2]
[376484714,1753993842563,-460.0,0.00019726,2]
[376484717,1753993842573,-4951.28,0.00019726,2]
[376484719,1753993842582,-460.0,0.00019726,2]
[376484721,1753993842591,-467.53839417,0.00019726,2]
[376484723,1753993842601,-1343.44,0.00019726,2]
[376484725,1753993842610,-579.97,0.00019726,2]
[376484727,1753993842620,-659.34,0.00019726,2]
[376484729,1753993842629,-460.0,0.00019726,2]
[376484731,1753993842639,-2537.1,0.00019726,2]
[376484733,1753993842649,-460.0,0.00019726,2]
[376484735,1753993842658,-596.0768907,0.00019726,2]
[376484737,1753993842676,-460.0,0.00019726,2]
[376484739,1753993842686,-153.46693738,0.00019726,2]
[376484741,1753993842695,-519.53,0.00019726,2]
[376484743,1753993842705,-460.0,0.00019726,2]
[376484745,1753993842721,-460.0,0.00019726,2]
[376484746,1753993842735,-539.4923896,0.00019759,2]
[376484749,1753993842745,-500.0,0.00019759,2]
[376484751,1753993842755,-970.0,0.00019842,2]
[376484753,1753993842764,-635.0,0.00019842,2]
[376484755,1753993842774,-407.0,0.00019842,2]
[376484757,1753993842783,-151.0,0.000199,2]
[376484759,1753993842793,-394.92808572,0.000199,2]
[376484761,1753993842803,-460.0,0.00019999,2]
[376484763,1753993842812,-2143.87,0.00019999,2]
[376484765,1753993842821,-534.17,0.00019999,2]
[376484767,1753993842831,-151.0,0.0002,2]
[376484769,1753993842841,-460.0,0.0002,2]
[376484771,1753993842850,-460.0,0.0002,2]
[376484773,1753993842859,-527.9,0.0002,2]
[376484775,1753993842869,-460.0,0.0002,2]
[376484777,1753993842878,-460.0,0.0002,2]
[376484779,1753993842887,-1441.23,0.0002,2]
[376484781,1753993842896,-460.0,0.0002,2]
[376484783,1753993842906,-460.0,0.0002,2]
[376484785,1753993842915,-460.0,0.0002,2]
[376484787,1753993842927,-460.0,0.0002,2]
[376484789,1753993842936,-460.0,0.0002,2]
[376484791,1753993842945,-460.0,0.0002,2]
[376484793,1753993842954,-951.04,0.0002,2]
[376484795,1753993842964,-460.0,0.0002,2]
[376484797,1753993842974,-460.0,0.0002,2]
[376484799,1753993842984,-513.32,0.0002,2]
[376484801,1753993842993,-460.0,0.0002,2]
[376484803,1753993843003,-460.0,0.0002,2]
[376484805,1753993843012,-460.0,0.0002,2]
[376484807,1753993843021,-2034.62,0.0002,2]
[376484809,1753993843031,-460.0,0.0002,2]
[376484811,1753993843040,-4951.28,0.0002,2]
[376484813,1753993843050,-460.0,0.0002,2]
[376484815,1753993843059,-1343.44,0.0002,2]
[376484817,1753993843068,-579.97,0.0002,2]
[376484819,1753993843078,-48535.7476427,0.0002,2]
[376484821,1753993843088,-659.34,0.0002,2]
[376484823,1753993843097,-2537.1,0.0002,2]
[376484825,1753993843106,-460.0,0.0002,2]
[376484827,1753993843116,-460.0,0.0002,2]
[376484829,1753993843125,-519.53,0.0002,2]
[376484831,1753993843134,-460.0,0.0002,2]
[376484833,1753993843144,-151.0,0.00020072,2]
[376484835,1753993843153,-394.9280856,0.00020072,2]
[376484837,1753993843163,-235.54619118,0.00020127,2]
[376484839,1753993843173,-330.444229,0.00020187,2]
[376484841,1753993843182,-233.27944302,0.00020191,2]
[376484843,1753993843192,-4729.43017502,0.00020213,2]
[376484845,1753993843201,-394.9280856,0.00020245,2]
[376484847,1753993843214,-500.0,0.00020272,2]
[376484849,1753993843223,-583.26394965,0.00020272,2]
[376484851,1753993843233,-500.0,0.00020272,2]
[376484853,1753993843242,-500.0,0.00020272,2]
[376484855,1753993843253,-500.0,0.00020272,2]
[376484857,1753993843263,-500.0,0.00020272,2]
[376484859,1753993843272,-500.0,0.00020272,2]
[376484861,1753993843281,-500.0,0.00020272,2]
[376484864,1753993843291,-500.0,0.00020272,2]
[376484866,1753993843301,-500.0,0.00020272,2]
[376484868,1753993843310,-500.0,0.00020272,2]
[376484869,1753993843319,-500.0,0.00020272,2]
[376484871,1753993843329,-151.0,0.00020273,2]
[376484874,1753993843338,-151.0,0.00020273,2]
[376484876,1753993843348,-460.0,0.00020273,2]
[376484877,1753993843357,-460.0,0.00020273,2]
[376484880,1753993843367,-527.9,0.00020273,2]
[376484881,1753993843378,-460.0,0.00020273,2]
[376484883,1753993843387,-460.0,0.00020273,2]
[376484885,1753993843397,-1441.23,0.00020273,2]
[376484888,1753993843407,-460.0,0.00020273,2]
[376484890,1753993843416,-460.0,0.00020273,2]
[376484891,1753993843426,-460.0,0.00020273,2]
[376484893,1753993843436,-460.0,0.00020273,2]
[376484895,1753993843445,-460.0,0.00020273,2]
[376484898,1753993843455,-951.04,0.00020273,2]
[376484899,1753993843465,-511.44857748,0.00020273,2]
[376484902,1753993843475,-460.0,0.00020273,2]
[376484903,1753993843484,-513.32,0.00020273,2]
[376484906,1753993843494,-468.79237104,0.00020273,2]
[376484908,1753993843504,-2034.62,0.00020273,2]
[376484909,1753993843513,-460.0,0.00020273,2]
[376484911,1753993843523,-4951.28,0.00020273,2]
[376484913,1753993843533,-460.0,0.00020273,2]
[376484915,1753993843542,-1343.44,0.00020273,2]
[376484917,1753993843552,-579.97,0.00020273,2]
[376484920,1753993843562,-460.0,0.00020273,2]
[376484922,1753993843571,-659.34,0.00020273,2]
[376484924,1753993843580,-2143.87,0.00020273,2]
[376484925,1753993843590,-2537.1,0.00020273,2]
[376484928,1753993843599,-460.0,0.00020273,2]
[376484930,1753993843609,-460.0,0.00020273,2]
[376484931,1753993843619,-534.17,0.00020273,2]
[376484934,1753993843629,-519.53,0.00020273,2]
[376484936,1753993843638,-460.0,0.00020273,2]
[376484937,1753993843649,-292.68202547,0.00020307,2]
[376484940,1753993843660,-460.0,0.00020313,2]
[376484942,1753993843669,-465.28869094,0.00020313,2]
[376484944,1753993843681,-460.0,0.00020313,2]
[376484946,1753993843691,-460.0,0.00020313,2]
[376484948,1753993843701,-460.0,0.00020313,2]
[376484950,1753993843710,-460.0,0.00020313,2]
[376484952,1753993843720,-460.0,0.00020313,2]
[376484954,1753993843729,-460.0,0.00020313,2]
[376484956,1753993843739,-460.0,0.00020313,2]
[376484958,1753993843749,-460.0,0.00020313,2]
[376484960,1753993843759,-460.0,0.00020313,2]
[376484962,1753993843769,-460.0,0.00020313,2]
[376484963,1753993843778,-460.0,0.00020313,2]
[376484966,1753993843788,-460.0,0.00020313,2]
[376484967,1753993843798,-460.0,0.00020313,2]
[376484970,1753993843807,-475.91132029,0.00020313,2]
[376484971,1753993843820,-460.0,0.00020313,2]
[376484973,1753993843829,-460.0,0.00020313,2]
[376484975,1753993843839,-297.4591523,0.00020313,2]
[376484978,1753993843848,-460.0,0.00020313,2]
[376484979,1753993843858,-460.0,0.00020313,2]
[376484982,1753993843867,-460.0,0.00020313,2]
[376484984,1753993843877,-461.55186778,0.00020313,2]
[376484985,1753993843886,-460.0,0.00020313,2]
[376484987,1753993843896,-460.0,0.00020313,2]
[376484988,1753993843905,-460.0,0.00020313,2]
[376484989,1753993843915,-460.0,0.00020313,2]
[376484990,1753993843928,-460.0,0.00020313,2]